Workbook

Sheet START
B1: ÜBER DIESE VORLAGE
B2: Verfolgen Sie die Anfangsinvestitionen in Ihre Website, ihren Nutzen und ihre Kosten mithilfe dieses Website-Budgettool nach.
B3: Setzen Sie den Firmenname und das Datum ein.
B4: Geben Sie Details in Tabellen ein, um Summen und die Auswertungsmetriken automatisch zu berechnen.
B5: Anmerkung:
B6: Weitere Anweisungen wurden in Spalte A des Arbeitsblatts BUDGETTOOL bereitgestellt. Dieser Text wurde absichtlich ausgeblendet. Um die Texte zu entfernen, wählen Sie Spalte A und dann ENTF aus. Um die Texte einzublenden, wählen Sie Spalte A aus, und ändern Sie die Schriftfarbe.
B7: Um mehr über Tabellen zu erfahren, drücken Sie auf dem Arbeitsblatt die UMSCHALTTASTE und dann F10 innerhalb einer Tabelle, wählen Sie die Option TABELLE und dann ALTERNATIVTEXT aus.

Sheet BUDGETTOOL
A1: Erstellen Sie auf diesem Arbeitsblatt ein Websitebudget. Nützliche Anweisungen zum Verwenden dieses Arbeitsblatts befinden sich in Zellen in dieser Spalte. Drücken Sie die NACH-UNTEN-TASTE, um anzufangen.
A2: Geben Sie den Firmennamen in der Zelle rechts ein. | B2: Firmenname
A3: Der Titel dieses Arbeitsblatts befindet sich in der Zelle rechts. | B3: Website-Budgettool
A4: Geben Sie das Datum in der Zelle rechts ein. | B4: Datum
A5: Der Tipp steht in der Zelle rechts. | B5: Graue Zellen enthalten Berechnungen, die nicht geändert werden sollten.
A6: Geben Sie Details in der Tabelle "Satz" ein, die in der Zelle rechts anfängt. Die nächste Anweisung finden Sie in Zelle A10. | B6: Unternehmensdaten | C6: Satz
B7: Erforderliche Ertragsrate | C7: 10%
B8: Steuersatz | C8: 30%
A10: Geben Sie Details in der Tabelle "AnfangsInvest" ein, die in der Zelle rechts anfängt. Die nächste Anweisung finden Sie in Zelle A16. | B10: Anfangsinvestition in die Website | C10: JAHR | D10: 1 | E10: 2 | F10: 3
B11: Hardware (z. B. Server) | C11: 25,000.00 €
B12: Software (z. B. Software für e-Commerce-Katalog) | C12: 15,000.00 €
B13: Entwicklung (z. B. Entwurf und Entwicklung durch Drittanbieter) | C13: 150,000.00 €
B14: Anfangsinvestitionen gesamt | C14: =SUBTOTAL(109,AnfangsInvest[JAHR]) -> 190,000.00 €
A16: Geben Sie Details in der Tabelle "Nutzen" ein, die in der Zelle rechts anfängt. Die nächste Anweisung finden Sie in Zelle A24. | B16: Nutzen der Website | C16: JAHR | D16: 1 | E16: 2 | F16: 3
B17: Direktverkäufe | D17: 15,000.00 € | E17: 50,000.00 € | F17: 75,000.00 €
B18: Gesteigerte Verkäufe aufgrund besserer Effektivität von Werbung/Verkäufern | D18: 25,000.00 € | E18: 25,000.00 € | F18: 25,000.00 €
B19: Gesteigerte Verkäufe aufgrund stärkerer Beteiligung von Partnern | D19: 25,000.00 € | E19: 25,000.00 € | F19: 25,000.00 €
B20: Verringerte Reisekosten | D20: 25,000.00 € | E20: 25,000.00 € | F20: 25,000.00 €
B21: Verringerte Kundendienstkosten | D21: 50,000.00 € | E21: 50,000.00 € | F21: 50,000.00 €
B22: Nutzen gesamt | D22: =SUBTOTAL(109,Nutzen[1]) -> 140,000.00 € | E22: =SUBTOTAL(109,Nutzen[2]) -> 175,000.00 € | F22: =SUBTOTAL(109,Nutzen[3]) -> 200,000.00 €
A24: Geben Sie Details in der Tabelle "Kosten" ein, die in der Zelle rechts anfängt. Die Werte werden in Zellen, die Formeln enthalten, automatisch berechnet. Die nächste Anweisung finden Sie in Zelle A32. | B24: Kosten (mit Ausnahme der Anfangskapitalinvestitionen) | C24: JAHR | D24: 1 | E24: 2 | F24: 3
B25: Vertriebskosten | D25: 7,500.00 € | E25: 25,000.00 € | F25: 37,500.00 €
B26: Wartung | D26: 15,000.00 € | E26: 15,000.00 € | F26: 15,000.00 €
B27: Projektmanagement, Kundensupport | D27: 35,000.00 € | E27: 35,000.00 € | F27: 35,000.00 €
B28: Onlinewerbung, Suchmaschinenregistrierung | D28: 10,000.00 € | E28: 10,000.00 € | F28: 10,000.00 €
B29: Abschreibung auf Kapitalaufwand (die Berechnung verwendet einen Drei-Jahres-Zeitraum) | D29: =AnfangsInvest[[#Totals],[JAHR]]/3 -> 63,333.33 € | E29: =AnfangsInvest[[#Totals],[JAHR]]/3 -> 63,333.33 € | F29: =AnfangsInvest[[#Totals],[JAHR]]/3 -> 63,333.33 €
B30: Gesamtkosten | D30: =SUBTOTAL(109,Kosten[1]) -> 130,833.33 € | E30: =SUBTOTAL(109,Kosten[2]) -> 148,333.33 € | F30: =SUBTOTAL(109,Kosten[3]) -> 160,833.33 €
A32: Die Werte werden in der Tabelle "Summen", die in der Zelle rechts beginnt, automatisch berechnet. Die nächste Anweisung finden Sie in Zelle A40. | B32: Summen | C32: JAHR | D32: 1 | E32: 2 | F32: 3
B33: Nettonutzen (Kosten) | D33: =Nutzen[[#Totals],[1]]-Kosten[[#Totals],[1]] -> 9,166.67 € | E33: =Nutzen[[#Totals],[2]]-Kosten[[#Totals],[2]] -> 26,666.67 € | F33: =Nutzen[[#Totals],[3]]-Kosten[[#Totals],[3]] -> 39,166.67 €
B34: Steuern | D34: =D33*SteuerSatz -> 2,750.00 € | E34: =E33*SteuerSatz -> 8,000.00 € | F34: =F33*SteuerSatz -> 11,750.00 €
B35: Wert nach Steuern | D35: =D33-D34 -> 6,416.67 € | E35: 18,666.67 € | F35: 27,416.67 €
B36: Zuzüglich Abschreibung | D36: =D29 -> 63,333.33 € | E36: =E29 -> 63,333.33 € | F36: =F29 -> 63,333.33 €
B37: Cashflow | C37: =-AnfangsInvest[[#Totals],[JAHR]] -> -190,000.00 € | D37: =D35+D36 -> 69,750.00 € | E37: 82,000.00 € | F37: 90,750.00 €
B38: Kumulierter Cashflow | C38: =C37 -> -190,000.00 € | D38: =C38+D37 -> -120,250.00 € | E38: -38,250.00 € | F38: 52,500.00 €
A40: Die Auswertungsmetriken werden in der Tabelle "Metriken", die in der Zelle rechts beginnt, automatisch berechnet. | B40: Auswertungsmetriken | C40: Werte
B41: Nettobarwert (NBW) | C41: =C37+(NPV(ROR,D37:F37)) -> 9,359.50 €
B42: Interner Zinsfuß (IKV) | C42: =IRR(C37:F37) -> 12.66%
B43: Amortisierungszeitraum in Jahren | C43: =IF(F38<=0,"Überschreitet 3 Jahre",IF(E38<=0,(F37-F38)/F37+2,IF(D38<=0,(E37-E38)/E37+1,IF(C38<=0,(D37-D38)/D37,"N/V")))) -> 2.42
